[Event "*** Titled Tuesday Blitz"]
[Site "Chess.com"]
[Date "2020.02.04"]
[Round "9"]
[White "WeAintSurePal"]
[Black "Zq1"]
[Result "0-1"]
[WhiteElo "2416"]
[BlackElo "2544"]
[TimeControl "180+2"]
[EndTime "11:08:45 PST"]
[Termination "Zq1 won by resignation"]

1. d4 {[%clk 0:03:01.9]} 1... Nf6 {[%clk 0:03:00]} 2. c4 {[%clk 0:03:02.4]} 2...
a6 {[%clk 0:03:01.3]} 3. g3 {[%clk 0:02:58.7]} 3... c5 {[%clk 0:03:02.3]} 4. Nf3
{[%clk 0:02:57.4]} 4... cxd4 {[%clk 0:03:02.1]} 5. Nxd4 {[%clk 0:02:59.3]} 5...
d5 {[%clk 0:03:03.1]} 6. Bg2 {[%clk 0:02:59.5]} 6... e5 {[%clk 0:03:03.3]} 7.
Nb3 {[%clk 0:02:59.2]} 7... dxc4 {[%clk 0:02:54.5]} 8. Qxd8+ {[%clk 0:02:58.6]}
8... Kxd8 {[%clk 0:02:55.4]} 9. N3d2 {[%clk 0:02:58.6]} 9... Be6 {[%clk
0:02:52.8]} 10. Bxb7 {[%clk 0:02:57.4]} 10... Ra7 {[%clk 0:02:53.2]} 11. Bg2
{[%clk 0:02:58.7]} 11... Nbd7 {[%clk 0:02:52.5]} 12. Nc3 {[%clk 0:02:59.8]}
12... Bb4 {[%clk 0:02:50]} 13. O-O {[%clk 0:03:00.1]} 13... Ke7 {[%clk
0:02:47.1]} 14. Nde4 {[%clk 0:03:00.1]} 14... Nxe4 {[%clk 0:02:43.3]} 15. Nxe4
{[%clk 0:03:00.2]} 15... f5 {[%clk 0:02:31]} 16. Bg5+ {[%clk 0:02:59.2]} 16...
Kf7 {[%clk 0:02:27.5]} 17. Nc3 {[%clk 0:03:00]} 17... h6 {[%clk 0:02:17.9]} 18.
Be3 {[%clk 0:02:55.8]} 18... Bc5 {[%clk 0:02:19]} 19. Bxc5 {[%clk 0:02:52.9]}
19... Nxc5 {[%clk 0:02:19.8]} 20. Rfd1 {[%clk 0:02:54.2]} 20... Rb8 {[%clk
0:02:16.6]} 21. Rd2 {[%clk 0:02:53]} 21... e4 {[%clk 0:02:15.8]} 22. f3 {[%clk
0:02:51.1]} 22... e3 {[%clk 0:02:12.2]} 23. Rc2 {[%clk 0:02:51.2]} 23... f4
{[%clk 0:02:12.4]} 24. gxf4 {[%clk 0:02:51.1]} 24... Rab7 {[%clk 0:02:11.1]} 25.
Rb1 {[%clk 0:02:50.4]} 25... Rb4 {[%clk 0:02:03.1]} 26. Ne4 {[%clk 0:02:47.1]}
26... Na4 {[%clk 0:01:57.2]} 27. b3 {[%clk 0:02:34.2]} 27... cxb3 {[%clk
0:01:49.9]} 28. axb3 {[%clk 0:02:36.1]} 28... Rxb3 {[%clk 0:01:49.7]} 29. Rxb3
{[%clk 0:02:35.7]} 29... Rxb3 {[%clk 0:01:50.4]} 30. Rc1 {[%clk 0:02:35]} 30...
Bd5 {[%clk 0:01:45.6]} 31. f5 {[%clk 0:02:29.3]} 31... Bxe4 {[%clk 0:01:41.6]}
32. fxe4 {[%clk 0:02:31.2]} 32... Kf6 {[%clk 0:01:42.1]} 33. Bf3 {[%clk
0:02:29.7]} 33... Nc3 {[%clk 0:01:39]} 34. Ra1 {[%clk 0:02:29.2]} 34... Rb1+
{[%clk 0:01:38.6]} 35. Rxb1 {[%clk 0:02:28.8]} 35... Nxb1 {[%clk 0:01:40.2]} 36.
Kf1 {[%clk 0:02:29.4]} 36... Nd2+ {[%clk 0:01:34.9]} 37. Ke1 {[%clk 0:02:29]}
37... Nxf3+ {[%clk 0:01:35.4]} 38. exf3 {[%clk 0:02:30.9]} 38... a5 {[%clk
0:01:36.3]} 39. Ke2 {[%clk 0:02:30.1]} 39... a4 {[%clk 0:01:37.5]} 40. Kxe3
{[%clk 0:02:31.2]} 40... a3 {[%clk 0:01:38.9]} 41. Kd2 {[%clk 0:02:32.9]} 41...
a2 {[%clk 0:01:40.1]} 42. Kc2 {[%clk 0:02:34.8]} 42... a1=Q {[%clk 0:01:40.8]}
0-1

[Event "*** Titled Tuesday Blitz"]
[Site "Chess.com"]
[Date "2020.02.04"]
[Round "9"]
[White "TheBigBoss04"]
[Black "PIwan"]
[Result "0-1"]
[WhiteElo "2686"]
[BlackElo "2546"]
[TimeControl "180+2"]
[EndTime "11:08:59 PST"]
[Termination "PIwan won by resignation"]

1. Nf3 {[%clk 0:03:01.9]} 1... d5 {[%clk 0:02:59.2]} 2. b3 {[%clk 0:03:03.3]}
2... Bf5 {[%clk 0:02:57.4]} 3. Bb2 {[%clk 0:03:04.4]} 3... e6 {[%clk 0:02:58.7]}
4. d3 {[%clk 0:03:05.6]} 4... Nf6 {[%clk 0:02:59]} 5. Nbd2 {[%clk 0:03:07]} 5...
Nbd7 {[%clk 0:02:58.6]} 6. h3 {[%clk 0:03:08]} 6... h6 {[%clk 0:02:55.5]} 7. g4
{[%clk 0:03:07.1]} 7... Bh7 {[%clk 0:02:55]} 8. e3 {[%clk 0:03:06.4]} 8... Bd6
{[%clk 0:02:52.3]} 9. g5 {[%clk 0:03:06.9]} 9... hxg5 {[%clk 0:02:52.2]} 10.
Nxg5 {[%clk 0:03:08.8]} 10... Bg6 {[%clk 0:02:53.6]} 11. Qe2 {[%clk 0:03:03]}
11... Qe7 {[%clk 0:02:50.8]} 12. Rg1 {[%clk 0:02:56.8]} 12... O-O-O {[%clk
0:02:33.8]} 13. O-O-O {[%clk 0:02:57.2]} 13... Ba3 {[%clk 0:02:17.3]} 14. Kb1
{[%clk 0:02:56.9]} 14... Bxb2 {[%clk 0:02:17.5]} 15. Kxb2 {[%clk 0:02:58.8]}
15... Bh5 {[%clk 0:02:19]} 16. Ngf3 {[%clk 0:02:55.6]} 16... e5 {[%clk
0:02:19.9]} 17. Qe1 {[%clk 0:02:54.3]} 17... e4 {[%clk 0:02:18.9]} 18. Nd4
{[%clk 0:02:55.1]} 18... Bxd1 {[%clk 0:02:18.5]} 19. Qxd1 {[%clk 0:02:56.5]}
19... c5 {[%clk 0:02:17]} 20. Nb5 {[%clk 0:02:52.7]} 20... a6 {[%clk 0:02:16.3]}
21. Nc3 {[%clk 0:02:54.3]} 21... Qe5 {[%clk 0:02:08.6]} 22. f4 {[%clk
0:02:54.8]} 22... exf3 {[%clk 0:02:06.7]} 23. Nxf3 {[%clk 0:02:54.9]} 23... Qxe3
{[%clk 0:01:47.7]} 24. Rxg7 {[%clk 0:02:55.6]} 24... Rhg8 {[%clk 0:01:41.1]} 25.
Rxf7 {[%clk 0:02:53.4]} 25... Qe6 {[%clk 0:01:38.5]} 26. Rxd7 {[%clk 0:02:38.7]}
26... Nxd7 {[%clk 0:01:32.8]} 27. d4 {[%clk 0:02:40.6]} 27... Kb8 {[%clk
0:01:26.3]} 28. dxc5 {[%clk 0:02:41.4]} 28... Nxc5 {[%clk 0:01:23]} 29. Nd4
{[%clk 0:02:43.3]} 29... Qe5 {[%clk 0:01:18.1]} 30. Bxa6 {[%clk 0:02:42.9]}
30... Ne4 {[%clk 0:01:12.8]} 31. Qd3 {[%clk 0:02:34.8]} 31... Nc5 {[%clk
0:01:03.6]} 32. Qb5 {[%clk 0:02:24.3]} 32... Qxd4 {[%clk 0:01:03.4]} 0-1

[Event "*** Titled Tuesday Blitz"]
[Site "Chess.com"]
[Date "2020.02.04"]
[Round "9"]
[White "ShimanovAlex"]
[Black "malandragem"]
[Result "1-0"]
[WhiteElo "2759"]
[BlackElo "2320"]
[TimeControl "180+2"]
[EndTime "11:09:36 PST"]
[Termination "ShimanovAlex won by resignation"]

1. e4 {[%clk 0:03:01.9]} 1... e5 {[%clk 0:03:00.4]} 2. f4 {[%clk 0:02:47.6]}
2... d5 {[%clk 0:03:00.7]} 3. d4 {[%clk 0:02:46.4]} 3... exd4 {[%clk 0:02:48.3]}
4. Qxd4 {[%clk 0:02:45.2]} 4... c6 {[%clk 0:02:41.8]} 5. Nc3 {[%clk 0:02:37.7]}
5... Nf6 {[%clk 0:02:33.3]} 6. e5 {[%clk 0:02:35.3]} 6... Nfd7 {[%clk
0:02:28.7]} 7. Qf2 {[%clk 0:02:32.5]} 7... Bc5 {[%clk 0:02:21.3]} 8. Be3 {[%clk
0:02:32.8]} 8... Qb6 {[%clk 0:02:17.5]} 9. Bxc5 {[%clk 0:02:32.6]} 9... Nxc5
{[%clk 0:02:13.5]} 10. b3 {[%clk 0:02:18.7]} 10... Bf5 {[%clk 0:02:11.1]} 11.
Nf3 {[%clk 0:02:16.2]} 11... Nbd7 {[%clk 0:02:05.7]} 12. Nd4 {[%clk 0:02:16]}
12... Be4 {[%clk 0:02:05.2]} 13. Be2 {[%clk 0:02:13.8]} 13... O-O {[%clk
0:01:58]} 14. O-O {[%clk 0:01:59.4]} 14... a5 {[%clk 0:01:59.3]} 15. a3 {[%clk
0:01:48.9]} 15... Rae8 {[%clk 0:01:58.8]} 16. Rfb1 {[%clk 0:01:36.8]} 16... f6
{[%clk 0:01:49.8]} 17. b4 {[%clk 0:01:15.2]} 17... axb4 {[%clk 0:01:18.1]} 18.
axb4 {[%clk 0:01:01.9]} 18... Ne6 {[%clk 0:01:19.3]} 19. Nxe6 {[%clk 0:00:53.2]}
19... Qxf2+ {[%clk 0:01:20.5]} 20. Kxf2 {[%clk 0:00:53.6]} 20... Rxe6 {[%clk
0:01:21.8]} 21. Nxe4 {[%clk 0:00:54.5]} 21... dxe4 {[%clk 0:01:22.4]} 22. Bc4
{[%clk 0:00:55.1]} 22... Kf7 {[%clk 0:01:14.7]} 23. f5 {[%clk 0:00:56]} 1-0

[Event "*** Titled Tuesday Blitz"]
[Site "Chess.com"]
[Date "2020.02.04"]
[Round "9"]
[White "Firouzja2003"]
[Black "LastGladiator1"]
[Result "1-0"]
[WhiteElo "3155"]
[BlackElo "2849"]
[TimeControl "180+2"]
[EndTime "11:09:54 PST"]
[Termination "Firouzja2003 won by resignation"]

1. e4 {[%clk 0:03:01.9]} 1... e6 {[%clk 0:02:51.3]} 2. d4 {[%clk 0:03:01.4]}
2... d5 {[%clk 0:02:52.5]} 3. Nc3 {[%clk 0:03:02.8]} 3... Bb4 {[%clk 0:02:52.9]}
4. Ne2 {[%clk 0:03:03.1]} 4... dxe4 {[%clk 0:02:50.9]} 5. a3 {[%clk 0:03:04.3]}
5... Bxc3+ {[%clk 0:02:50.1]} 6. Nxc3 {[%clk 0:03:05.7]} 6... Nc6 {[%clk
0:02:50.7]} 7. d5 {[%clk 0:02:52.4]} 7... exd5 {[%clk 0:02:49.1]} 8. Qxd5 {[%clk
0:02:53.4]} 8... Be6 {[%clk 0:02:41.1]} 9. Qxe4 {[%clk 0:02:54.3]} 9... Nf6
{[%clk 0:02:41.5]} 10. Qh4 {[%clk 0:02:55]} 10... Nd5 {[%clk 0:02:41.6]} 11. Bg5
{[%clk 0:02:42.4]} 11... f6 {[%clk 0:02:42.4]} 12. Bd2 {[%clk 0:02:43]} 12...
Nxc3 {[%clk 0:02:37.7]} 13. Bxc3 {[%clk 0:02:44.9]} 13... O-O {[%clk 0:02:02.1]}
14. Bd3 {[%clk 0:02:43.8]} 14... f5 {[%clk 0:02:02.9]} 15. Qg3 {[%clk
0:02:32.6]} 15... Rf7 {[%clk 0:01:46.8]} 16. O-O-O {[%clk 0:02:30.7]} 16... Qf8
{[%clk 0:01:44.8]} 17. Rhe1 {[%clk 0:02:28.6]} 17... Bd5 {[%clk 0:01:00.8]} 18.
Be2 {[%clk 0:02:12.1]} 18... f4 {[%clk 0:00:41.4]} 19. Qh4 {[%clk 0:01:57.1]}
19... f3 {[%clk 0:00:14]} 20. gxf3 {[%clk 0:01:55.8]} 20... Bxf3 {[%clk
0:00:13.7]} 21. Bc4 {[%clk 0:01:56.8]} 21... Bxd1 {[%clk 0:00:12.5]} 22. Rg1
{[%clk 0:01:57.6]} 22... Bf3 {[%clk 0:00:06.4]} 23. Bxg7 {[%clk 0:01:45.5]} 1-0

[Event "*** Titled Tuesday Blitz"]
[Site "Chess.com"]
[Date "2020.02.04"]
[Round "9"]
[White "RoelandPruijssers"]
[Black "Tjktiger"]
[Result "1/2-1/2"]
[WhiteElo "2637"]
[BlackElo "2777"]
[TimeControl "180+2"]
[EndTime "11:09:59 PST"]
[Termination "Game drawn by repetition"]

1. f4 {[%clk 0:03:01.9]} 1... Nf6 {[%clk 0:02:57.3]} 2. Nf3 {[%clk 0:03:01]}
2... d5 {[%clk 0:02:58.1]} 3. g3 {[%clk 0:03:00.1]} 3... g6 {[%clk 0:02:59.4]}
4. Bg2 {[%clk 0:02:59.9]} 4... Bg7 {[%clk 0:03:01.3]} 5. O-O {[%clk 0:03:01.3]}
5... O-O {[%clk 0:03:03.2]} 6. d3 {[%clk 0:03:02.6]} 6... b6 {[%clk 0:03:04.2]}
7. Ne5 {[%clk 0:03:01]} 7... Bb7 {[%clk 0:03:03.8]} 8. Nc3 {[%clk 0:03:02.6]}
8... Nbd7 {[%clk 0:02:59.4]} 9. e4 {[%clk 0:02:57.7]} 9... dxe4 {[%clk
0:02:46.7]} 10. Nxd7 {[%clk 0:02:57.7]} 10... Qxd7 {[%clk 0:02:43.9]} 11. dxe4
{[%clk 0:02:59.2]} 11... Qxd1 {[%clk 0:02:41.7]} 12. Rxd1 {[%clk 0:03:01.1]}
12... e5 {[%clk 0:02:34.2]} 13. f5 {[%clk 0:02:52.4]} 13... Rfd8 {[%clk
0:02:23.3]} 14. Rxd8+ {[%clk 0:02:44]} 14... Rxd8 {[%clk 0:02:23.5]} 15. h3
{[%clk 0:02:42.2]} 15... Bf8 {[%clk 0:01:43.7]} 16. Bg5 {[%clk 0:02:38.8]} 16...
Be7 {[%clk 0:01:35.7]} 17. g4 {[%clk 0:01:49.9]} 17... Kg7 {[%clk 0:01:34.1]}
18. Be3 {[%clk 0:01:50]} 18... h6 {[%clk 0:01:34.9]} 19. a3 {[%clk 0:01:45.9]}
19... Bc6 {[%clk 0:01:27.9]} 20. Kf2 {[%clk 0:01:44.4]} 20... Bc5 {[%clk
0:01:17.5]} 21. Bxc5 {[%clk 0:01:40.7]} 21... bxc5 {[%clk 0:01:19.4]} 22. b4
{[%clk 0:01:28.5]} 22... Rd4 {[%clk 0:01:14.6]} 23. Ke3 {[%clk 0:01:25.8]} 23...
Rc4 {[%clk 0:01:00.5]} 24. Kd3 {[%clk 0:01:25.4]} 24... Rd4+ {[%clk 0:01:01.4]}
25. Ke3 {[%clk 0:01:26.6]} 25... Rc4 {[%clk 0:00:26.6]} 26. Kd3 {[%clk
0:01:25.8]} 26... Rd4+ {[%clk 0:00:27.9]} 27. Ke3 {[%clk 0:01:26.3]} 1/2-1/2

[Event "*** Titled Tuesday Blitz"]
[Site "Chess.com"]
[Date "2020.02.04"]
[Round "9"]
[White "RojonR"]
[Black "HarryCun"]
[Result "0-1"]
[WhiteElo "2409"]
[BlackElo "2149"]
[TimeControl "180+2"]
[EndTime "11:10:23 PST"]
[Termination "HarryCun won by checkmate"]

1. e4 {[%clk 0:03:01.9]} 1... c6 {[%clk 0:03:01.1]} 2. d4 {[%clk 0:02:51.5]}
2... d5 {[%clk 0:03:02.5]} 3. e5 {[%clk 0:02:52.2]} 3... Bf5 {[%clk 0:03:02.8]}
4. Ne2 {[%clk 0:02:52.9]} 4... e6 {[%clk 0:03:03.8]} 5. Ng3 {[%clk 0:02:53.8]}
5... Bg6 {[%clk 0:03:04.7]} 6. h4 {[%clk 0:02:53.5]} 6... h6 {[%clk 0:03:04.9]}
7. h5 {[%clk 0:02:54.5]} 7... Bh7 {[%clk 0:03:05.2]} 8. Bd3 {[%clk 0:02:56.4]}
8... Bxd3 {[%clk 0:03:05.5]} 9. cxd3 {[%clk 0:02:58.3]} 9... Nd7 {[%clk
0:03:06.8]} 10. O-O {[%clk 0:02:58.6]} 10... Ne7 {[%clk 0:03:07.8]} 11. Qg4
{[%clk 0:02:51.5]} 11... Qb6 {[%clk 0:03:03.7]} 12. Be3 {[%clk 0:02:51.8]} 12...
Qxb2 {[%clk 0:03:02.1]} 13. Nd2 {[%clk 0:02:52.2]} 13... Qc2 {[%clk 0:03:02.3]}
14. Rab1 {[%clk 0:02:38.7]} 14... b6 {[%clk 0:02:49.5]} 15. Rb3 {[%clk
0:02:27.1]} 15... Qxa2 {[%clk 0:02:45]} 16. f4 {[%clk 0:02:24.2]} 16... c5
{[%clk 0:02:41.6]} 17. dxc5 {[%clk 0:02:13.6]} 17... Nxc5 {[%clk 0:02:35.7]} 18.
Bxc5 {[%clk 0:02:04.6]} 18... Qxd2 {[%clk 0:02:29.5]} 19. Bxe7 {[%clk
0:01:56.9]} 19... Bxe7 {[%clk 0:02:28.9]} 20. Qxg7 {[%clk 0:01:56.7]} 20... Kd7
{[%clk 0:02:30.3]} 21. Qg4 {[%clk 0:01:42]} 21... Rhg8 {[%clk 0:02:16.1]} 22.
Qf3 {[%clk 0:01:42.6]} 22... Rac8 {[%clk 0:02:10.1]} 23. f5 {[%clk 0:01:18.8]}
23... Bh4 {[%clk 0:01:44]} 24. fxe6+ {[%clk 0:01:09]} 24... fxe6 {[%clk
0:01:42.9]} 25. Qf7+ {[%clk 0:01:04.5]} 25... Be7 {[%clk 0:01:43.6]} 26. Qf3
{[%clk 0:00:40.9]} 26... Rc2 {[%clk 0:01:41.7]} 27. Kh2 {[%clk 0:00:36.3]} 27...
Rf8 {[%clk 0:01:27.9]} 28. Qd1 {[%clk 0:00:19.6]} 28... Qxg2# {[%clk 0:01:18.9]}
0-1

[Event "*** Titled Tuesday Blitz"]
[Site "Chess.com"]
[Date "2020.02.04"]
[Round "9"]
[White "rasmussvane"]
[Black "Gordima"]
[Result "1-0"]
[WhiteElo "2868"]
[BlackElo "2803"]
[TimeControl "180+2"]
[EndTime "11:10:26 PST"]
[Termination "rasmussvane won by resignation"]

1. Nf3 {[%clk 0:03:01.9]} 1... d5 {[%clk 0:02:59.8]} 2. g3 {[%clk 0:03:03.2]}
2... Nf6 {[%clk 0:03:00.7]} 3. Bg2 {[%clk 0:03:04.3]} 3... e6 {[%clk 0:03:01.9]}
4. O-O {[%clk 0:03:05.1]} 4... c5 {[%clk 0:03:03.4]} 5. c4 {[%clk 0:03:01.2]}
5... d4 {[%clk 0:03:04.2]} 6. e3 {[%clk 0:03:02.3]} 6... Nc6 {[%clk 0:03:04.8]}
7. exd4 {[%clk 0:03:03.4]} 7... cxd4 {[%clk 0:03:04.6]} 8. d3 {[%clk 0:03:04.6]}
8... Bd6 {[%clk 0:03:06]} 9. Bg5 {[%clk 0:03:00.3]} 9... h6 {[%clk 0:03:06.6]}
10. Bxf6 {[%clk 0:03:01.3]} 10... Qxf6 {[%clk 0:03:06.3]} 11. a3 {[%clk
0:03:02.7]} 11... O-O {[%clk 0:03:04.7]} 12. Nfd2 {[%clk 0:03:00.1]} 12... Qd8
{[%clk 0:03:04.1]} 13. Re1 {[%clk 0:02:55.2]} 13... a5 {[%clk 0:03:03.8]} 14.
Ne4 {[%clk 0:02:41.2]} 14... Be7 {[%clk 0:02:58.6]} 15. c5 {[%clk 0:02:42.6]}
15... e5 {[%clk 0:02:51.8]} 16. Nbd2 {[%clk 0:02:41.3]} 16... Be6 {[%clk
0:02:44.6]} 17. Rc1 {[%clk 0:02:41]} 17... a4 {[%clk 0:02:32.6]} 18. Nc4 {[%clk
0:02:36.6]} 18... Qc7 {[%clk 0:02:29.3]} 19. Ned6 {[%clk 0:02:33.2]} 19... Bxc4
{[%clk 0:01:56.4]} 20. Rxc4 {[%clk 0:01:57.9]} 20... Bxd6 {[%clk 0:01:46.6]} 21.
cxd6 {[%clk 0:01:59.8]} 21... Qxd6 {[%clk 0:01:46.5]} 22. Rxa4 {[%clk
0:02:01.4]} 22... Rxa4 {[%clk 0:01:34.3]} 23. Qxa4 {[%clk 0:02:03.3]} 23... Qc5
{[%clk 0:01:35.8]} 24. Qb3 {[%clk 0:01:58.9]} 24... Na5 {[%clk 0:01:14.7]} 25.
Qd5 {[%clk 0:01:44.3]} 25... Qxd5 {[%clk 0:01:08.1]} 26. Bxd5 {[%clk 0:01:46.2]}
26... Nc6 {[%clk 0:01:05.5]} 27. Bxc6 {[%clk 0:01:43.3]} 27... bxc6 {[%clk
0:01:06.2]} 28. Rxe5 {[%clk 0:01:44.9]} 28... Rb8 {[%clk 0:01:07.6]} 29. b4
{[%clk 0:01:43.6]} 29... Rb5 {[%clk 0:01:03.8]} 30. Rxb5 {[%clk 0:01:18]} 30...
cxb5 {[%clk 0:01:04.8]} 31. Kf1 {[%clk 0:01:19.6]} 31... Kf8 {[%clk 0:01:04.9]}
32. Ke2 {[%clk 0:01:20.3]} 32... Ke7 {[%clk 0:01:06.1]} 33. Kd2 {[%clk
0:01:20.8]} 33... Ke6 {[%clk 0:01:07.7]} 34. Kc2 {[%clk 0:01:20.6]} 34... Kf5
{[%clk 0:01:08.9]} 35. f3 {[%clk 0:01:15.9]} 1-0

[Event "*** Titled Tuesday Blitz"]
[Site "Chess.com"]
[Date "2020.02.04"]
[Round "9"]
[White "VALPARAISO37"]
[Black "OhanyanEminChess"]
[Result "1-0"]
[WhiteElo "2246"]
[BlackElo "2441"]
[TimeControl "180+2"]
[EndTime "11:10:50 PST"]
[Termination "VALPARAISO37 won by checkmate"]

1. d4 {[%clk 0:03:01.9]} 1... Nf6 {[%clk 0:03:00.4]} 2. c4 {[%clk 0:03:02.4]}
2... e5 {[%clk 0:03:00.4]} 3. dxe5 {[%clk 0:03:02.8]} 3... Ng4 {[%clk
0:03:01.2]} 4. Nf3 {[%clk 0:03:03.7]} 4... Nc6 {[%clk 0:03:02.1]} 5. Bf4 {[%clk
0:03:03.9]} 5... Bb4+ {[%clk 0:03:03.6]} 6. Nbd2 {[%clk 0:03:04]} 6... Qe7
{[%clk 0:03:00.1]} 7. e3 {[%clk 0:03:05]} 7... Ngxe5 {[%clk 0:03:00.2]} 8. Be2
{[%clk 0:03:05.9]} 8... O-O {[%clk 0:02:57.3]} 9. O-O {[%clk 0:03:06.1]} 9...
Bxd2 {[%clk 0:02:58.8]} 10. Qxd2 {[%clk 0:03:07]} 10... d6 {[%clk 0:02:50.9]}
11. Rac1 {[%clk 0:03:07.1]} 11... Nxf3+ {[%clk 0:02:36.7]} 12. Bxf3 {[%clk
0:03:07]} 12... Ne5 {[%clk 0:02:38.6]} 13. Be2 {[%clk 0:03:08.2]} 13... b6
{[%clk 0:02:33.5]} 14. b4 {[%clk 0:03:08.1]} 14... Bb7 {[%clk 0:02:25.2]} 15. c5
{[%clk 0:03:08.1]} 15... dxc5 {[%clk 0:02:25.6]} 16. bxc5 {[%clk 0:03:08.8]}
16... f6 {[%clk 0:02:17.8]} 17. Qc3 {[%clk 0:03:03.7]} 17... Rad8 {[%clk
0:02:14.1]} 18. a4 {[%clk 0:03:00.1]} 18... Bd5 {[%clk 0:01:50.8]} 19. a5 {[%clk
0:02:57.8]} 19... Bf7 {[%clk 0:01:49.5]} 20. Rfe1 {[%clk 0:02:53.8]} 20... Rd5
{[%clk 0:01:44.2]} 21. cxb6 {[%clk 0:02:52.4]} 21... cxb6 {[%clk 0:01:44.9]} 22.
axb6 {[%clk 0:02:52.8]} 22... axb6 {[%clk 0:01:46.8]} 23. Qb2 {[%clk 0:02:48.6]}
23... Rb8 {[%clk 0:01:43]} 24. Bc4 {[%clk 0:02:40.2]} 24... Nxc4 {[%clk
0:01:28.5]} 25. Rxc4 {[%clk 0:02:38.2]} 25... Rbd8 {[%clk 0:01:17.5]} 26. Qxb6
{[%clk 0:02:36.8]} 26... Rd1 {[%clk 0:01:09.4]} 27. Rc1 {[%clk 0:02:36.8]} 27...
Rxe1+ {[%clk 0:01:10.6]} 28. Rxe1 {[%clk 0:02:37.1]} 28... h6 {[%clk 0:01:11.3]}
29. h3 {[%clk 0:02:37.5]} 29... Qe4 {[%clk 0:01:11.8]} 30. f3 {[%clk 0:02:35.9]}
30... Qc2 {[%clk 0:01:12.4]} 31. Qxd8+ {[%clk 0:02:35.2]} 31... Kh7 {[%clk
0:01:12.1]} 32. Qe7 {[%clk 0:02:33.2]} 32... Qd2 {[%clk 0:01:12.5]} 33. Ra1
{[%clk 0:02:23.4]} 33... Qd5 {[%clk 0:00:57]} 34. Ra7 {[%clk 0:02:22.6]} 34...
Kg6 {[%clk 0:00:58.2]} 35. e4 {[%clk 0:02:20.9]} 35... Qc4 {[%clk 0:00:55.8]}
36. h4 {[%clk 0:02:16]} 36... Kh5 {[%clk 0:00:55.9]} 37. Qxf7+ {[%clk
0:02:15.9]} 37... Qxf7 {[%clk 0:00:57.8]} 38. Rxf7 {[%clk 0:02:15.6]} 38... g5
{[%clk 0:00:59.7]} 39. Rxf6 {[%clk 0:02:15.6]} 39... gxf4 {[%clk 0:00:58.6]} 40.
Rxf4 {[%clk 0:02:14.9]} 40... Kg6 {[%clk 0:01:00.5]} 41. Rf5 {[%clk 0:02:15]}
41... Kg7 {[%clk 0:01:00.7]} 42. g4 {[%clk 0:02:14.2]} 42... Kg6 {[%clk
0:01:02.6]} 43. e5 {[%clk 0:02:14.3]} 43... h5 {[%clk 0:01:02.5]} 44. Rxh5
{[%clk 0:02:14.7]} 44... Kf7 {[%clk 0:01:03.9]} 45. Rh6 {[%clk 0:02:14]} 45...
Kg7 {[%clk 0:01:04.6]} 46. g5 {[%clk 0:02:14.8]} 46... Kf7 {[%clk 0:01:05.9]}
47. f4 {[%clk 0:02:16.2]} 47... Kg7 {[%clk 0:01:07.4]} 48. f5 {[%clk 0:02:17.1]}
48... Kf8 {[%clk 0:01:09.1]} 49. Rh7 {[%clk 0:02:17.4]} 49... Kg8 {[%clk
0:01:10.1]} 50. g6 {[%clk 0:02:18.1]} 50... Kf8 {[%clk 0:01:12]} 51. h5 {[%clk
0:02:18.8]} 51... Ke8 {[%clk 0:01:13.9]} 52. h6 {[%clk 0:02:20.4]} 52... Kf8
{[%clk 0:01:14.4]} 53. Kh1 {[%clk 0:02:21.1]} 53... Kg8 {[%clk 0:01:16.3]} 54.
Ra7 {[%clk 0:02:21.2]} 54... Kh8 {[%clk 0:01:18.2]} 55. e6 {[%clk 0:02:22.2]}
55... Kg8 {[%clk 0:01:18.7]} 56. f6 {[%clk 0:02:22.8]} 56... Kf8 {[%clk
0:01:19.4]} 57. Kg1 {[%clk 0:02:23.1]} 57... Ke8 {[%clk 0:01:20.4]} 58. Rd7
{[%clk 0:02:21.4]} 58... Kf8 {[%clk 0:01:21.5]} 59. Kf1 {[%clk 0:02:21.9]} 59...
Kg8 {[%clk 0:01:23.4]} 60. Ke1 {[%clk 0:02:22.6]} 60... Kh8 {[%clk 0:01:25.3]}
61. Rd8# {[%clk 0:02:23.5]} 1-0

[Event "*** Titled Tuesday Blitz"]
[Site "Chess.com"]
[Date "2020.02.04"]
[Round "9"]
[White "Irishchessman16"]
[Black "karinachess1"]
[Result "0-1"]
[WhiteElo "2244"]
[BlackElo "2493"]
[TimeControl "180+2"]
[EndTime "11:11:04 PST"]
[Termination "karinachess1 won by resignation"]

1. e4 {[%clk 0:03:01.9]} 1... c5 {[%clk 0:03:01.1]} 2. Nf3 {[%clk 0:03:00.8]}
2... Nc6 {[%clk 0:03:02]} 3. Bb5 {[%clk 0:02:59.6]} 3... e6 {[%clk 0:03:02.2]}
4. O-O {[%clk 0:02:56.3]} 4... Nge7 {[%clk 0:03:02.9]} 5. d4 {[%clk 0:02:55.9]}
5... cxd4 {[%clk 0:03:02]} 6. Nxd4 {[%clk 0:02:56.6]} 6... a6 {[%clk 0:03:03.1]}
7. Be2 {[%clk 0:02:39.6]} 7... Nxd4 {[%clk 0:03:02.2]} 8. Qxd4 {[%clk
0:02:41.5]} 8... Nc6 {[%clk 0:03:04.1]} 9. Qd1 {[%clk 0:02:33.9]} 9... Be7
{[%clk 0:03:03.9]} 10. c4 {[%clk 0:02:34.3]} 10... O-O {[%clk 0:03:01.7]} 11.
Nc3 {[%clk 0:02:34.4]} 11... Qc7 {[%clk 0:03:02.6]} 12. Be3 {[%clk 0:02:32.4]}
12... d6 {[%clk 0:02:58.5]} 13. Rc1 {[%clk 0:02:27.1]} 13... Ne5 {[%clk
0:02:58.7]} 14. f4 {[%clk 0:02:22.3]} 14... Nd7 {[%clk 0:02:57.6]} 15. Bf3
{[%clk 0:02:15.7]} 15... Rb8 {[%clk 0:02:44.5]} 16. b4 {[%clk 0:01:46.1]} 16...
b6 {[%clk 0:02:41.2]} 17. a3 {[%clk 0:01:47.2]} 17... Bb7 {[%clk 0:02:41.6]} 18.
g4 {[%clk 0:01:42.3]} 18... Rfe8 {[%clk 0:02:37.1]} 19. g5 {[%clk 0:01:42.4]}
19... Bf8 {[%clk 0:02:36.4]} 20. Ne2 {[%clk 0:01:36.9]} 20... Rbc8 {[%clk
0:02:34.9]} 21. Qe1 {[%clk 0:01:31.9]} 21... Qb8 {[%clk 0:02:30.9]} 22. Qh4
{[%clk 0:01:27.6]} 22... b5 {[%clk 0:02:04.3]} 23. cxb5 {[%clk 0:01:24.7]} 23...
axb5 {[%clk 0:02:06.2]} 24. Nc3 {[%clk 0:01:05.5]} 24... Bc6 {[%clk 0:01:48.4]}
25. Qf2 {[%clk 0:01:02.6]} 25... Qb7 {[%clk 0:01:46.1]} 26. Qg2 {[%clk 0:00:52]}
26... Nb6 {[%clk 0:01:40.7]} 27. Bxb6 {[%clk 0:00:47]} 27... Qxb6+ {[%clk
0:01:42.6]} 28. Kh1 {[%clk 0:00:47.7]} 28... Bb7 {[%clk 0:01:37.6]} 29. Qe2
{[%clk 0:00:46.9]} 29... Bc6 {[%clk 0:01:24.7]} 30. e5 {[%clk 0:00:43.2]} 30...
Bxf3+ {[%clk 0:01:09.1]} 31. Rxf3 {[%clk 0:00:42.6]} 31... Rc4 {[%clk 0:01:05]}
32. Rcf1 {[%clk 0:00:33.4]} 32... Qc6 {[%clk 0:01:02.9]} 33. Ne4 {[%clk
0:00:26.6]} 33... Qxe4 {[%clk 0:01:01.5]} 0-1